Workbook

Sheet Лист1
A1: Школа | C1: МБОУ Исенбаевская СОШ Агрызского района РТ | F1: Утвердил: | G1: должность | H1: директор
A2: Типовое примерное меню приготавливаемых блюд | G2: фамилия | H2: И.Ф.Муллануров
A3: Возрастная категория | E3: 7-11 лет | G3: дата | H3: 9 | I3: 1 | J3: 2024
H4: день | I4: месяц | J4: год
A5: Неделя | B5: День недели | C5: Прием пищи | D5: Раздел меню | E5: Блюда | F5: Вес блюда, г | G5: Белки | H5: Жиры | I5: Углеводы | J5: Калорийность | K5: № рецептуры | L5: Цена
A6: 1 | B6: 1 | C6: Завтрак | D6: закуска | E6: САЛАТ ИЗ МОРКОВИ С САХАРОМ | F6: 60 | G6: 0.52 | H6: 2.13 | I6: 4.45 | J6: 50.00 | L6: 2.54
D7: гор.блюдо | E7: КОТЛЕТЫ "ТАТАРСКИЕ" С СОУСОМ | F7: 90(75/15) | G7: 12.59 | H7: 19.89 | I7: 10.10 | J7: 269.74 | L7: 42.62
D8: гор.блюдо | E8: КАША ПШЕННАЯ ВЯЗКАЯ С МАСЛОМ | F8: 150/5 | G8: 5.65 | H8: 4.47 | I8: 28.00 | J8: 175.00 | L8: 5.93
D9: гор.напиток | E9: ЧАЙ С МОЛОКОМ | F9: 150/50/10 | G9: 1.52 | H9: 1.35 | I9: 15.90 | J9: 81.00 | L9: 6.09
D10: хлеб | E10: ХЛЕБ ПШЕНИЧНЫЙ | F10: 30 | G10: 2.28 | H10: 0.24 | I10: 14.76 | J10: 71.00 | L10: 2.58
D11: хлеб | E11: ХЛЕБ ДАРНИЦКИЙ (РЖАНО-ПШЕНИЧНЫЙ) | F11: 20 | G11: 1.36 | H11: 0.26 | I11: 7.96 | J11: 39.60 | L11: 1.39
D13: итого | F13: =SUM(F6:F12) -> 110 | G13: =SUM(G6:G12) -> 23.913 | H13: 28.345 | I13: 81.171 | J13: 686.335 | L13: =SUM(L6:L12) -> 61.15
A14: =A6 -> 1 | B14: =B6 -> 1 | C14: Обед | D14: закуска
D15: 1 блюдо
D16: 2 блюдо
D17: гарнир
D18: напиток
D19: хлеб бел.
D20: хлеб черн.
D23: итого | F23: =SUM(F14:F22) -> 0 | G23: =SUM(G14:G22) -> 0 | H23: 0 | I23: 0 | J23: 0 | L23: =SUM(L14:L22) -> 0
A24: =A6 -> 1 | B24: =B6 -> 1 | C24: Итого за день: | F24: =F13+F23 -> 110 | G24: =G13+G23 -> 23.913 | H24: 28.345 | I24: 81.171 | J24: 686.335 | L24: =L13+L23 -> 61.15
A25: 1 | B25: 2 | C25: Завтрак | D25: закуска | E25: САЛАТ ИЗ БЕЛОКОЧАННОЙ КАПУСТЫ | F25: 60 | G25: 0.78 | H25: 1.94 | I25: 3.87 | J25: 36.00 | L25: 2.85
D26: гор.блюдо | E26: РАГУ ИЗ ПТИЦЫ | F26: 50/150 | G26: 12.30 | H26: 17.66 | I26: 29.85 | J26: 313.00 | L26: 38.93
D27: гор.напиток | E27: КОМПОТ ИЗ СМЕСИ СУХОФРУКТОВ | F27: 200 | G27: 0.60 | H27: 0.10 | I27: 20.10 | J27: 84.00 | L27: 4.20
D28: хлеб | E28: ХЛЕБ ПШЕНИЧНЫЙ | F28: 30 | G28: 2.28 | H28: 0.24 | I28: 14.76 | J28: 71.00 | L28: 2.58
D29: хлеб | E29: ХЛЕБ ДАРНИЦКИЙ (РЖАНО-ПШЕНИЧНЫЙ) | F29: 20 | G29: 1.36 | H29: 0.26 | I29: 7.96 | J29: 39.60 | L29: 1.39
D32: итого | F32: =SUM(F25:F31) -> 310 | G32: =SUM(G25:G31) -> 17.32 | H32: =SUM(H25:H31) -> 20.2 | I32: =SUM(I25:I31) -> 76.54 | J32: =SUM(J25:J31) -> 543.6 | L32: 49.95
A33: =A25 -> 1 | B33: =B25 -> 2 | C33: Обед | D33: закуска
D34: 1 блюдо
D35: 2 блюдо
D36: гарнир
D37: напиток
D38: хлеб бел.
D39: хлеб черн.
D42: итого | F42: =SUM(F33:F41) -> 0 | G42: =SUM(G33:G41) -> 0 | H42: =SUM(H33:H41) -> 0 | I42: =SUM(I33:I41) -> 0 | J42: =SUM(J33:J41) -> 0 | L42: 0
A43: =A25 -> 1 | B43: =B25 -> 2 | C43: Итого за день: | F43: =F32+F42 -> 310 | G43: =G32+G42 -> 17.32 | H43: =H32+H42 -> 20.2 | I43: =I32+I42 -> 76.54 | J43: =J32+J42 -> 543.6 | L43: 49.95
A44: 1 | B44: 3 | C44: Завтрак | D44: закуска | E44: САЛАТ ИЗ СВЕКЛЫ ОТВАРНОЙ | F44: 60 | G44: 0.86 | H44: 3.65 | I44: 11.58 | J44: 56.00 | L44: 2.86
D45: гор.блюдо | E45: ТЕФТЕЛИ МЯСНЫЕ С СОУСОМ | F45: 50/50 | G45: 12.54 | H45: 19.04 | I45: 9.93 | J45: 261.21 | L45: 33.19
D46: гор.блюдо | E46: МАКАРОНЫ ОТВАРНЫЕ С МАСЛОМ | F46: 150/5 | G46: 6.40 | H46: 7.40 | I46: 42.30 | J46: 261.40 | L46: 6.75
D47: гор.напиток | E47: ЧАЙ С ЛИМОНОМ | F47: 200/10/7 | G47: 0.30 | H47: 0.10 | I47: 9.50 | J47: 40.00 | L47: 3.49
D48: хлеб | E48: ХЛЕБ ПШЕНИЧНЫЙ | F48: 30 | G48: 2.28 | H48: 0.24 | I48: 14.76 | J48: 71.00 | L48: 2.58
D49: хлеб | E49: ХЛЕБ ДАРНИЦКИЙ (РЖАНО-ПШЕНИЧНЫЙ) | F49: 20 | G49: 1.36 | H49: 0.26 | I49: 7.96 | J49: 39.60 | L49: 1.39
D51: итого | F51: =SUM(F44:F50) -> 110 | G51: =SUM(G44:G50) -> 23.735 | H51: =SUM(H44:H50) -> 30.693 | I51: =SUM(I44:I50) -> 96.03 | J51: =SUM(J44:J50) -> 729.21 | L51: 50.26
A52: =A44 -> 1 | B52: =B44 -> 3 | C52: Обед | D52: закуска
D53: 1 блюдо
D54: 2 блюдо
D55: гарнир
D56: напиток
D57: хлеб бел.
D58: хлеб черн.
D61: итого | F61: =SUM(F52:F60) -> 0 | G61: =SUM(G52:G60) -> 0 | H61: =SUM(H52:H60) -> 0 | I61: =SUM(I52:I60) -> 0 | J61: =SUM(J52:J60) -> 0 | L61: 0
A62: =A44 -> 1 | B62: =B44 -> 3 | C62: Итого за день: | F62: =F51+F61 -> 110 | G62: =G51+G61 -> 23.735 | H62: =H51+H61 -> 30.693 | I62: =I51+I61 -> 96.03 | J62: =J51+J61 -> 729.21 | L62: 50.26
A63: 1 | B63: 4 | C63: Завтрак | D63: закуска | E63: САЛАТ ОВОЩНОЙ С ЯБЛОКАМИ | F63: 60 | G63: 3.50 | H63: 6.11 | I63: 9.90 | J63: 124.00 | L63: 4.73
D64: гор.блюдо | E64: КОТЛЕТЫ "ЛЮБИМЫЕ" С СОУСОМ | F64: 90(75/15) | G64: 11.00 | H64: 11.80 | I64: 11.80 | J64: 197.41 | L64: 34.14
D65: гор.блюдо | E65: ПЮРЕ КАРТОФЕЛЬНОЕ | F65: 150 | G65: 4.05 | H65: 6.00 | I65: 8.70 | J65: 105.00 | L65: 10.45
D66: гор.напиток | E66: ЧАЙ С САХАРОМ | F66: 200/10 | G66: 0.20 | H66: 0.00 | I66: 13.70 | J66: 56.00 | L66: 1.83
D67: хлеб | E67: ХЛЕБ ПШЕНИЧНЫЙ | F67: 30 | G67: 2.28 | H67: 0.24 | I67: 14.76 | J67: 71.00 | L67: 2.58
D68: хлеб | E68: ХЛЕБ ДАРНИЦКИЙ (РЖАНО-ПШЕНИЧНЫЙ) | F68: 20 | G68: 1.36 | H68: 0.26 | I68: 7.96 | J68: 39.60 | L68: 1.39
D70: итого | F70: =SUM(F63:F69) -> 260 | G70: =SUM(G63:G69) -> 22.385 | H70: =SUM(H63:H69) -> 24.4135 | I70: =SUM(I63:I69) -> 66.821 | J70: =SUM(J63:J69) -> 593.005 | L70: 55.12
A71: =A63 -> 1 | B71: =B63 -> 4 | C71: Обед | D71: закуска
D72: 1 блюдо
D73: 2 блюдо
D74: гарнир
D75: напиток
D76: хлеб бел.
D77: хлеб черн.
D80: итого | F80: =SUM(F71:F79) -> 0 | G80: =SUM(G71:G79) -> 0 | H80: =SUM(H71:H79) -> 0 | I80: =SUM(I71:I79) -> 0 | J80: =SUM(J71:J79) -> 0 | L80: 0
A81: =A63 -> 1 | B81: =B63 -> 4 | C81: Итого за день: | F81: =F70+F80 -> 260 | G81: =G70+G80 -> 22.385 | H81: =H70+H80 -> 24.4135 | I81: =I70+I80 -> 66.821 | J81: =J70+J80 -> 593.005 | L81: 55.12
A82: 1 | B82: 5 | C82: Завтрак | D82: закуска | E82: САЛАТ ИЗ БЕЛОКОЧАННОЙ КАПУСТЫ | F82: 60 | G82: 0.78 | H82: 1.94 | I82: 3.87 | J82: 36.00 | L82: 2.85
D83: гор.блюдо | E83: КОТЛЕТЫ "ТАТАРСКИЕ" С СОУСОМ | F83: 90(75/15) | G83: 12.59 | H83: 19.89 | I83: 10.10 | J83: 269.74 | L83: 42.62
D84: гор.блюдо | E84: КАША ЯЧНЕВАЯ ВЯЗКАЯ С МАСЛОМ | F84: 150/5 | G84: 3.65 | H84: 5.37 | I84: 36.68 | J84: 209.70 | L84: 4.96
D85: гор.напиток | E85: КИСЕЛЬ | F85: 200 | G85: 0.00 | H85: 0.00 | I85: 15.00 | J85: 60.00 | L85: 3.01
D86: хлеб | E86: ХЛЕБ ПШЕНИЧНЫЙ | F86: 30 | G86: 2.28 | H86: 0.24 | I86: 14.76 | J86: 71.00 | L86: 2.58
D87: хлеб | E87: ХЛЕБ ДАРНИЦКИЙ (РЖАНО-ПШЕНИЧНЫЙ) | F87: 20 | G87: 1.36 | H87: 0.26 | I87: 7.96 | J87: 39.60 | L87: 1.39
D89: итого | F89: =SUM(F82:F88) -> 310 | G89: =SUM(G82:G88) -> 20.655 | H89: =SUM(H82:H88) -> 27.704 | I89: =SUM(I82:I88) -> 88.371 | J89: =SUM(J82:J88) -> 686.035 | L89: 57.41
A90: =A82 -> 1 | B90: =B82 -> 5 | C90: Обед | D90: закуска
D91: 1 блюдо
D92: 2 блюдо
D93: гарнир
D94: напиток
D95: хлеб бел.
D96: хлеб черн.
D99: итого | F99: =SUM(F90:F98) -> 0 | G99: =SUM(G90:G98) -> 0 | H99: =SUM(H90:H98) -> 0 | I99: =SUM(I90:I98) -> 0 | J99: =SUM(J90:J98) -> 0 | L99: 0
A100: =A82 -> 1 | B100: =B82 -> 5 | C100: Итого за день: | F100: =F89+F99 -> 310 | G100: =G89+G99 -> 20.655 | H100: =H89+H99 -> 27.704 | I100: =I89+I99 -> 88.371 | J100: =J89+J99 -> 686.035 | L100: 57.41
A101: 2 | B101: 1 | C101: Завтрак | D101: фрукты | E101: ПЛОДЫ И ЯГОДЫ СВЕЖИЕ | F101: 100 | G101: 0.40 | H101: 0.40 | I101: 7.35 | J101: 47.00 | L101: 11.52
D102: закуска | E102: САЛАТ ИЗ БЕЛОКОЧАННОЙ КАПУСТЫ | F102: 60 | G102: 0.78 | H102: 1.94 | I102: 3.87 | J102: 36.00 | L102: 2.85
D103: гор.блюдо | E103: ФРИКАДЕЛЬКИ В СОУСЕ | F103: 55/50 | G103: 8.33 | H103: 7.74 | I103: 3.19 | J103: 175.00 | L103: 38.69
D104: гор.блюдо | E104: КАША ПШЕННАЯ ВЯЗКАЯ С МАСЛОМ | F104: 150/5 | G104: 5.65 | H104: 4.47 | I104: 28.00 | J104: 175.00 | L104: 5.93
D105: гор.напиток | E105: ЧАЙ С САХАРОМ | F105: 200/10 | G105: 0.20 | H105: 0.00 | I105: 13.70 | J105: 56.00 | L105: 1.83
D106: хлеб | E106: ХЛЕБ ПШЕНИЧНЫЙ | F106: 30 | G106: 2.28 | H106: 0.24 | I106: 14.76 | J106: 71.00 | L106: 2.58
D107: хлеб | E107: ХЛЕБ ДАРНИЦКИЙ (РЖАНО-ПШЕНИЧНЫЙ) | F107: 20 | G107: 1.36 | H107: 0.26 | I107: 7.96 | J107: 39.60 | L107: 1.39
D108: итого | F108: =SUM(F101:F107) -> 210 | G108: =SUM(G101:G107) -> 19.002 | H108: 15.052 | I108: 78.834 | J108: 599.6 | L108: =SUM(L101:L107) -> 64.79
A109: =A101 -> 2 | B109: =B101 -> 1 | C109: Обед | D109: закуска
D110: 1 блюдо
D111: 2 блюдо
D112: гарнир
D113: напиток
D114: хлеб бел.
D115: хлеб черн.
D118: итого | F118: =SUM(F109:F117) -> 0 | G118: =SUM(G109:G117) -> 0 | H118: 0 | I118: 0 | J118: 0 | L118: =SUM(L109:L117) -> 0
A119: =A101 -> 2 | B119: =B101 -> 1 | C119: Итого за день: | F119: =F108+F118 -> 210 | G119: =G108+G118 -> 19.002 | H119: =H108+H118 -> 15.052 | I119: =I108+I118 -> 78.834 | J119: =J108+J118 -> 599.6 | L119: 64.79
A120: 2 | B120: 2 | C120: Завтрак | D120: закуска | E120: САЛАТ ИЗ СВЕКЛЫ ОТВАРНОЙ | F120: 60 | G120: 0.86 | H120: 3.65 | I120: 11.58 | J120: 56.00 | L120: 2.86
D121: гор.блюдо | E121: ПЛОВ ИЗ ПТИЦЫ | F121: 50/150 | G121: 12.30 | H121: 17.66 | I121: 29.85 | J121: 313.00 | L121: 41.13
D122: гор.напиток | E122: КОМПОТ ИЗ СМЕСИ СУХОФРУКТОВ | F122: 200 | G122: 0.60 | H122: 0.10 | I122: 20.10 | J122: 84.00 | L122: 4.20
D123: хлеб | E123: ХЛЕБ ПШЕНИЧНЫЙ | F123: 30 | G123: 2.28 | H123: 0.24 | I123: 14.76 | J123: 71.00 | L123: 2.58
D124: хлеб | E124: ХЛЕБ ДАРНИЦКИЙ (РЖАНО-ПШЕНИЧНЫЙ) | F124: 20 | G124: 1.36 | H124: 0.26 | I124: 7.96 | J124: 39.60 | L124: 1.39
D127: итого | F127: =SUM(F120:F126) -> 310 | G127: =SUM(G120:G126) -> 17.395 | H127: 21.913 | I127: 84.25 | J127: 563.6 | L127: =SUM(L120:L126) -> 52.16
A128: =A120 -> 2 | B128: =B120 -> 2 | C128: Обед | D128: закуска
D129: 1 блюдо
D130: 2 блюдо
D131: гарнир
D132: напиток
D133: хлеб бел.
D134: хлеб черн.
D137: итого | F137: =SUM(F128:F136) -> 0 | G137: =SUM(G128:G136) -> 0 | H137: 0 | I137: 0 | J137: 0 | L137: =SUM(L128:L136) -> 0
A138: =A120 -> 2 | B138: =B120 -> 2 | C138: Итого за день: | F138: =F127+F137 -> 310 | G138: =G127+G137 -> 17.395 | H138: =H127+H137 -> 21.913 | I138: =I127+I137 -> 84.25 | J138: =J127+J137 -> 563.6 | L138: 52.16
A139: 2 | B139: 3 | C139: Завтрак | D139: закуска | E139: САЛАТ ОВОЩНОЙ С ЯБЛОКАМИ | F139: 60 | G139: 3.50 | H139: 6.11 | I139: 9.90 | J139: 124.00 | L139: 4.73
D140: гор.блюдо | E140: КОТЛЕТЫ "ЛЮБИМЫЕ" С СОУСОМ | F140: 90(75/15) | G140: 11.00 | H140: 11.80 | I140: 11.80 | J140: 197.41 | L140: 34.14
D141: гор.блюдо | E141: КАША ГРЕЧНЕВАЯ РАССЫПЧАТАЯ С МАСЛОМ | F141: 150/5 | G141: 8.75 | H141: 5.99 | I141: 39.60 | J141: 246.00 | L141: 8.95
D142: гор.напиток | E142: КИСЕЛЬ | F142: 200 | G142: 0.00 | H142: 0.00 | I142: 15.00 | J142: 60.00 | L142: 3.01
D143: хлеб | E143: ХЛЕБ ПШЕНИЧНЫЙ | F143: 30 | G143: 2.28 | H143: 0.24 | I143: 14.76 | J143: 71.00 | L143: 2.58
D144: хлеб | E144: ХЛЕБ ДАРНИЦКИЙ (РЖАНО-ПШЕНИЧНЫЙ) | F144: 20 | G144: 1.36 | H144: 0.26 | I144: 7.96 | J144: 39.60 | L144: 1.39
D146: итого | F146: =SUM(F139:F145) -> 310 | G146: =SUM(G139:G145) -> 26.88 | H146: 24.3985 | I146: 99.021 | J146: 738.005 | L146: =SUM(L139:L145) -> 54.8
A147: =A139 -> 2 | B147: =B139 -> 3 | C147: Обед | D147: закуска
D148: 1 блюдо
D149: 2 блюдо
D150: гарнир
D151: напиток
D152: хлеб бел.
D153: хлеб черн.
D156: итого | F156: =SUM(F147:F155) -> 0 | G156: =SUM(G147:G155) -> 0 | H156: 0 | I156: 0 | J156: 0 | L156: =SUM(L147:L155) -> 0
A157: =A139 -> 2 | B157: =B139 -> 3 | C157: Итого за день: | F157: =F146+F156 -> 310 | G157: =G146+G156 -> 26.88 | H157: =H146+H156 -> 24.3985 | I157: =I146+I156 -> 99.021 | J157: =J146+J156 -> 738.005 | L157: 54.8
A158: 2 | B158: 4 | C158: Завтрак | D158: закуска | E158: САЛАТ ИЗ МОРКОВИ С САХАРОМ | F158: 60 | G158: 0.52 | H158: 2.13 | I158: 4.45 | J158: 50.00 | L158: 2.54
D159: гор.блюдо | E159: КОТЛЕТЫ "ТАТАРСКИЕ" С СОУСОМ | F159: 90(75/15) | G159: 12.59 | H159: 19.89 | I159: 10.10 | J159: 269.74 | L159: 42.62
D160: гор.блюдо | E160: МАКАРОНЫ ОТВАРНЫЕ С МАСЛОМ | F160: 150/5 | G160: 6.40 | H160: 7.40 | I160: 42.30 | J160: 261.40 | L160: 6.75
D161: гор.напиток | E161: КАКАО С МОЛОКОМ | F161: 200 | G161: 3.78 | H161: 0.67 | I161: 26.00 | J161: 125.00 | L161: 9.75
D162: хлеб | E162: ХЛЕБ ПШЕНИЧНЫЙ | F162: 30 | G162: 2.28 | H162: 0.24 | I162: 14.76 | J162: 71.00 | L162: 2.58
D163: хлеб | E163: ХЛЕБ ДАРНИЦКИЙ (РЖАНО-ПШЕНИЧНЫЙ) | F163: 20 | G163: 1.36 | H163: 0.26 | I163: 7.96 | J163: 39.60 | L163: 1.39
D165: итого | F165: =SUM(F158:F164) -> 310 | G165: =SUM(G158:G164) -> 26.921 | H165: 30.596 | I165: 105.571 | J165: 816.735 | L165: =SUM(L158:L164) -> 65.63
A166: =A158 -> 2 | B166: =B158 -> 4 | C166: Обед | D166: закуска
D167: 1 блюдо
D168: 2 блюдо
D169: гарнир
D170: напиток
D171: хлеб бел.
D172: хлеб черн.
D175: итого | F175: =SUM(F166:F174) -> 0 | G175: =SUM(G166:G174) -> 0 | H175: 0 | I175: 0 | J175: 0 | L175: =SUM(L166:L174) -> 0
A176: =A158 -> 2 | B176: =B158 -> 4 | C176: Итого за день: | F176: =F165+F175 -> 310 | G176: =G165+G175 -> 26.921 | H176: =H165+H175 -> 30.596 | I176: =I165+I175 -> 105.571 | J176: =J165+J175 -> 816.735 | L176: 65.63
A177: 2 | B177: 5 | C177: Завтрак | D177: закуска | E177: САЛАТ ИЗ СВЕКЛЫ ОТВАРНОЙ | F177: 60 | G177: 0.86 | H177: 3.65 | I177: 11.58 | J177: 56.00 | L177: 2.86
D178: гор.блюдо | E178: БИТОЧКИ РЫБНЫЕ "МОРЯЧКА" С СОУСОМ | F178: 90(75/15) | G178: 10.49 | H178: 11.98 | I178: 10.10 | J178: 174.94 | L178: 19.88
D179: гор.блюдо | E179: ПЮРЕ КАРТОФЕЛЬНОЕ | F179: 150 | G179: 4.05 | H179: 6.00 | I179: 8.70 | J179: 105.00 | L179: 10.45
D180: гор.напиток | E180: ЧАЙ С САХАРОМ | F180: 200/10 | G180: 0.20 | H180: 0.00 | I180: 13.70 | J180: 56.00 | L180: 1.83
D181: хлеб | E181: ХЛЕБ ПШЕНИЧНЫЙ | F181: 30 | G181: 2.28 | H181: 0.24 | I181: 14.76 | J181: 71.00 | L181: 2.58
D182: хлеб | E182: ХЛЕБ ДАРНИЦКИЙ (РЖАНО-ПШЕНИЧНЫЙ) | F182: 20 | G182: 1.36 | H182: 0.26 | I182: 7.96 | J182: 39.60 | L182: 1.39
D184: итого | F184: =SUM(F177:F183) -> 260 | G184: =SUM(G177:G183) -> 19.23 | H184: 22.1365 | I184: 66.801 | J184: 502.535 | L184: =SUM(L177:L183) -> 38.99
A185: =A177 -> 2 | B185: =B177 -> 5 | C185: Обед | D185: закуска
D186: 1 блюдо
D187: 2 блюдо
D188: гарнир
D189: напиток
D190: хлеб бел.
D191: хлеб черн.
D194: итого | F194: =SUM(F185:F193) -> 0 | G194: =SUM(G185:G193) -> 0 | H194: 0 | I194: 0 | J194: 0 | L194: =SUM(L185:L193) -> 0
A195: =A177 -> 2 | B195: =B177 -> 5 | C195: Итого за день: | F195: =F184+F194 -> 260 | G195: =G184+G194 -> 19.23 | H195: =H184+H194 -> 22.1365 | I195: =I184+I194 -> 66.801 | J195: =J184+J194 -> 502.535 | L195: 38.99
C196: Среднее значение за период: | F196: =(F24+F43+F62+F81+F100+F119+F138+F157+F176+F195)/(IF(F24=0,0,1)+IF(F43=0,0,1)+IF(F62=0,0,1)+IF(F81=0,0,1)+IF(F100=0,0,1)+IF(F119=0,0,1)+IF(F138=0,0,1)+IF(F157=0,0,1)+IF(F176=0,0,1)+IF(F195=0,0,1)) -> 250 | G196: =(G24+G43+G62+G81+G100+G119+G138+G157+G176+G195)/(IF(G24=0,0,1)+IF(G43=0,0,1)+IF(G62=0,0,1)+IF(G81=0,0,1)+IF(G100=0,0,1)+IF(G119=0,0,1)+IF(G138=0,0,1)+IF(G157=0,0,1)+IF(G176=0,0,1)+IF(G195=0,0,1)) -> 21.7436 | H196: 24.54515 | I196: 84.341 | J196: 645.866 | L196: =(L24+L43+L62+L81+L100+L119+L138+L157+L176+L195)/(IF(L24=0,0,1)+IF(L43=0,0,1)+IF(L62=0,0,1)+IF(L81=0,0,1)+IF(L100=0,0,1)+IF(L119=0,0,1)+IF(L138=0,0,1)+IF(L157=0,0,1)+IF(L176=0,0,1)+IF(L195=0,0,1)) -> 55.026
